[Event "ISR-chT 2019"]
[Site "Israel"]
[Date "2019.03.08"]
[Round "9.4"]
[White "Poleg, Matan"]
[Black "Aharonovich, Itamar"]
[Result "1/2-1/2"]
[ECO "E14"]
[WhiteElo "2195"]
[BlackElo "2288"]
[Annotator "NA RC"]
[PlyCount "181"]
[EventDate "2019.01.04"]
[EventType "team-tourn"]
[EventCountry "ISR"]
[SourceTitle "playchess.com"]
[Source "ChessBase"]
[SourceQuality "1"]
[TimeControl "40/5400+30:1800+30"]

1. d4 {[%emt 0:00:00]} Nf6 {[%emt 0:04:37]} 2. c4 {[%emt 0:01:04]} e6 {[%emt 0:00:07]} 3. Nf3 {[%emt 0:00:11]} b6 {[%emt 0:00:06]} 4. e3 {[%emt 0:00:22]} Bb7 {[%emt 0:02:54]} 5. Bd3 {[%emt 0:00:15]} d5 {[%emt 0:02:49]} 6. O-O {[%emt 0:00:11]} Be7 {[%emt 0:03:09]} 7. cxd5 {[%emt 0:00:16]} exd5 {[%emt 0:00:34]} 8. b3 {[%emt 0:00:10]} O-O {[%emt 0:00:12]} 9. Bb2 {[%emt 0:00:09]} c5 {[%emt 0:01:23]} 10. Nc3 {[%emt 0:02:20]} Nbd7 {[%emt 0:02:14]} 11. Ne5 {[%emt 0:00:36]} a6 {[%emt 0:06:18]} 12. Ne2 {[%emt 0:03:14]} Bd6 {[%emt 0:15:30]} 13. Ng3 {[%emt 0:11:54]} g6 {[%emt 0:01:59]} 14. Nxd7 {[%emt 0:06:49]} Nxd7 {[%emt 0:00:33]} 15. Qg4 {[%emt 0:01:21]} Nf6 {[%emt 0:04:55]} 16. Qf3 {[%emt 0:00:15]} Ne4 {[%emt 0:10:16]} 17. dxc5 {[%emt 0:04:01]} Nxg3 {[%emt 0:09:32]} 18. hxg3 {[%emt 0:09:57]} bxc5 {[%emt 0:00:36]} 19. g4 {[%emt 0:00:01]} Re8 {[%emt 0:02:47]} 20. Bf6 {[%emt 0:01:04]} Be7 {[%emt 0:02:38]} 21. Be5 {[%emt 0:06:37]} Bd6 {[%emt 0:02:31]} 22. Bf6 {[%emt 0:01:12]} Be7 {[%emt 0:00:49]} 23. Be5 {[%emt 0:00:02]} Qd7 {[%emt 0:00:40]} 24. Qf4 {[%emt 0:05:56]} Bf8 {[%emt 0:04:31]} 25. Rac1 {[%emt 0:03:52]} Qe6 {[%emt 0:00:09]} 26. Bf6 {[%emt 0:02:35]} Rac8 {[%emt 0:08:50]} 27. Bb2 {[%emt 0:06:39]} Bd6 {[%emt 0:05:12]} 28. Qg5 {[%emt 0:01:52]} Be7 {[%emt 0:00:50]} 29. Qh6 {[%emt 0:01:16]} Bf8 {[%emt 0:01:40]} 30. Qf4 {[%emt 0:00:06]} Bd6 {[%emt 0:02:34]} 31. Qg5 {[%emt 0:03:21]} Be7 {[%emt 0:00:54]} 32. Qh6 {[%emt 0:00:02]} d4 {[%emt 0:01:25]} 33. exd4 {[%emt 0:07:23]} Qxg4 {[%emt 0:01:23]} 34. d5 {[%emt 0:03:17]} Bf8 {[%emt 0:00:18]} 35. Qd2 {[%emt 0:00:15]} Bd6 {[%emt 0:01:22]} 36. Bc4 {[%emt 0:06:50]} Bf4 {[%emt 0:00:26]} 37. Qc3 {[%emt 0:00:01]} Be5 {[%emt 0:00:21]} 38. Qxe5 {[%emt 0:04:06]} Rxe5 {[%emt 0:00:01]} 39. Bxe5 {[%emt 0:00:02]} Rd8 {[%emt 0:00:41]} 40. Rfe1 {[%emt 0:01:32]} Qf5 {[%emt 0:01:40]} 41. Rcd1 {[%emt 0:35:51]} h5 {[%emt 0:08:11]} 42. Bc7 {[%emt 0:00:00]} Rd7 {[%emt 0:04:23]} 43. Re8+ {[%emt 0:00:00]} Kh7 {[%emt 0:02:12]} 44. Be5 {[%emt 0:00:00]} f6 {[%emt 0:02:25]} 45. Bd6 {[%emt 0:00:00]} h4 {[%emt 0:04:06]} 46. Rd3 {[%emt 0:00:00]} Rxd6 {[%emt 0:03:06]} 47. Re7+ {[%emt 0:00:00]} Kh6 {[%emt 0:00:12]} 48. Rxb7 {[%emt 0:00:00]} Qe5 {[%emt 0:00:16]} 49. Re3 {[%emt 0:00:00]} Qa1+ {[%emt 0:10:13]} 50. Kh2 Qxa2 {[%emt 0:00:00]} 51. Re2 {[%emt 0:00:00]} Qa1 {[%emt 0:00:00]} 52. Rbe7 {[%emt 0:00:00]} f5 {[%emt 0:00:00]} 53. R7e6 {[%emt 0:00:00]} Qd4 {[%emt 0:00:00]} 54. Kg1 {[%emt 0:00:00]} Rxd5 {[%emt 0:00:00]} 55. Bxd5 {[%emt 0:00:18]} Qxd5 {[%emt 0:00:00]} 56. R6e3 {[%emt 0:00:01]} c4 {[%emt 0:00:00]} 57. bxc4 {[%emt 0:00:08]} Qxc4 {[%emt 0:00:00]} 58. Re1 {[%emt 0:00:46]} Kh5 {[%emt 0:00:00]} 59. Ra3 {[%emt 0:00:13]} g5 {[%emt 0:01:36]} 60. Ra5 {[%emt 0:00:37]} Kg4 {[%emt 0:01:30]} 61. Rea1 {[%emt 0:00:20]} f4 {[%emt 0:00:46]} 62. Rxa6 {[%emt 0:00:47]} h3 {[%emt 0:00:43]} 63. R6a4 {[%emt 0:00:37]} Qc6 {[%emt 0:01:07]} 64. gxh3+ {[%emt 0:00:18]} Kxh3 {[%emt 0:00:02]} 65. R4a3+ {[%emt 0:00:28]} Kh4 {[%emt 0:01:24]} 66. Ra6 {[%emt 0:01:24]} Qd7 {[%emt 0:00:27]} 67. Rh6+ {[%emt 0:00:27]} Kg4 {[%emt 0:00:01]} 68. Rb1 {[%emt 0:06:47]} Qd3 {[%emt 0:00:38]} 69. Rhb6 {[%emt 0:00:16]} Qh3 {[%emt 0:00:29]} 70. R6b4 {[%emt 0:01:55]} Kh5 {[%emt 0:00:41]} 71. Rb8 {[%emt 0:01:22]} Qg4+ {[%emt 0:00:36]} 72. Kh1 {[%emt 0:00:36]} Qh3+ {[%emt 0:00:47]} 73. Kg1 {[%emt 0:00:01]} Qg4+ {[%emt 0:00:06]} 74. Kh1 {[%emt 0:00:01]} Qf3+ {[%emt 0:00:24]} 75. Kg1 {[%emt 0:00:03]} Qc3 {[%emt 0:00:25]} 76. R8b3 {[%emt 0:00:13]} Qc8 {[%emt 0:00:14]} 77. Rb8 {[%emt 0:00:12]} Qc5 {[%emt 0:00:55]} 78. R8b5 {[%emt 0:00:13]} Qd4 {[%emt 0:00:30]} 79. R5b4 {[%emt 0:00:11]} Qd7 {[%emt 0:00:45]} 80. Rb7 {[%emt 0:00:31]} Qf5 {[%emt 0:00:14]} 81. Rb8 {[%emt 0:02:03]} f3 {[%emt 0:00:58]} 82. R1b4 {[%emt 0:00:00]} Qe5 {[%emt 0:00:26]} 83. Rb1 {[%emt 0:00:25]} Qd4 {[%emt 0:00:20]} 84. R8b4 {[%emt 0:00:29]} Qd7 {[%emt 0:00:26]} 85. Kh2 {[%emt 0:00:43]} Qd6+ {[%emt 0:00:29]} 86. Kg1 {[%emt 0:00:52]} Qe5 {[%emt 0:00:19]} 87. Rb5 {[%emt 0:00:26]} Qd6 {[%emt 0:00:39]} 88. R5b4 {[%emt 0:00:13]} Qe6 {[%emt 0:00:46]} 89. Kh2 {[%emt 0:00:34]} Qd6+ {[%emt 0:00:41]} 90. Kg1 {[%emt 0:00:41]} Qd3 {[%emt 0:00:27]} 91. Kh2 {[%emt 0:00:12]} 1/2-1/2

[Event "ISR-chT 2019"]
[Site "Israel"]
[Date "2019.03.08"]
[Round "9.5"]
[White "Kreizberg, Michael"]
[Black "Kudischewitsch, David"]
[Result "1/2-1/2"]
[ECO "A50"]
[WhiteElo "2305"]
[BlackElo "2350"]
[Annotator "NA RC"]
[PlyCount "126"]
[EventDate "2019.01.04"]
[EventType "team-tourn"]
[EventCountry "ISR"]
[SourceTitle "playchess.com"]
[Source "ChessBase"]
[SourceQuality "1"]
[TimeControl "40/5400+30:1800+30"]

1. d4 {[%emt 0:09:08]} Nf6 {[%emt 0:00:00]} 2. c4 {[%emt 0:00:06]} c6 {[%emt 0:00:06]} 3. Nf3 {[%emt 0:00:11]} b5 {[%emt 0:00:25]} 4. cxb5 {[%emt 0:00:13]} Qa5+ {[%emt 0:00:04]} 5. Bd2 {[%emt 0:01:36]} Qxb5 {[%emt 0:00:05]} 6. Nc3 {[%emt 0:08:22]} Qb6 {[%emt 0:00:08]} 7. e4 {[%emt 0:01:05]} e6 {[%emt 0:00:10]} 8. e5 {[%emt 0:13:31]} Nd5 {[%emt 0:00:06]} 9. Na4 {[%emt 0:00:07]} Qd8 {[%emt 0:00:24]} 10. Ng5 {[%emt 0:00:28]} f5 {[%emt 0:06:30]} 11. Bc4 {[%emt 0:01:43]} Nb6 {[%emt 0:01:19]} 12. Nxb6 {[%emt 0:05:41]} Qxb6 {[%emt 0:00:40]} 13. Bc3 {[%emt 0:09:28]} Be7 {[%emt 0:01:37]} 14. h4 {[%emt 0:00:55]} Na6 {[%emt 0:01:45]} 15. Qd2 {[%emt 0:06:41]} Nb4 {[%emt 0:03:11]} 16. a3 {[%emt 0:00:09]} Nd5 {[%emt 0:00:06]} 17. Ba5 {[%emt 0:00:05]} Qb8 {[%emt 0:00:10]} 18. O-O {[%emt 0:05:26]} O-O {[%emt 0:00:36]} 19. Rfe1 {[%emt 0:00:41]} Bb7 {[%emt 0:01:44]} 20. Bxd5 {[%emt 0:07:22]} cxd5 {[%emt 0:00:05]} 21. Bb4 {[%emt 0:00:25]} Bxb4 {[%emt 0:00:22]} 22. Qxb4 {[%emt 0:00:12]} Bc6 {[%emt 0:00:42]} 23. Qd2 {[%emt 0:00:33]} a5 {[%emt 0:00:12]} 24. b4 {[%emt 0:00:27]} axb4 {[%emt 0:02:17]} 25. axb4 {[%emt 0:00:05]} Qb6 {[%emt 0:00:19]} 26. Ra5 {[%emt 0:00:24]} Bb5 {[%emt 0:01:15]} 27. Rea1 {[%emt 0:00:37]} Rac8 {[%emt 0:00:01]} 28. Nf3 {[%emt 0:02:45]} h6 {[%emt 0:00:32]} 29. Ne1 {[%emt 0:02:03]} Rc7 {[%emt 0:19:10]} 30. Ra8 {[%emt 0:02:06]} Rcc8 {[%emt 0:03:43]} 31. R8a5 {[%emt 0:02:18]} Rc7 {[%emt 0:05:12]} 32. Nc2 {[%emt 0:03:08]} Rb8 {[%emt 0:01:45]} 33. Ra8 {[%emt 0:02:55]} Rcc8 {[%emt 0:00:33]} 34. Rxb8 {[%emt 0:00:14]} Qxb8 {[%emt 0:03:22]} 35. Ra5 {[%emt 0:00:19]} Kh7 {[%emt 0:12:03]} 36. Na3 {[%emt 0:02:18]} Bc6 {[%emt 0:01:50]} 37. Rc5 {[%emt 0:00:28]} Qa7 {[%emt 0:00:15]} 38. Qc3 {[%emt 0:00:29]} Ra8 {[%emt 0:00:19]} 39. Ra5 {[%emt 0:00:52]} Qb8 {[%emt 0:00:07]} 40. b5 {[%emt 0:00:52]} Bb7 {[%emt 0:00:28]} 41. Rxa8 {[%emt 0:39:33]} Qxa8 {[%emt 0:30:05]} 42. Qc5 {[%emt 0:00:00]} Qa5 {[%emt 0:00:00]} 43. Nc2 {[%emt 0:00:00]} Qd2 {[%emt 0:00:00]} 44. Ne3 {[%emt 0:00:00]} Qe1+ {[%emt 0:00:00]} 45. Nf1 {[%emt 0:00:00]} Qb1 {[%emt 0:00:00]} 46. h5 {[%emt 0:00:00]} f4 {[%emt 0:00:00]} 47. Qf8 {[%emt 0:00:00]} Qxb5 {[%emt 0:00:00]} 48. Qxf4 {[%emt 0:00:00]} Ba6 {[%emt 0:00:00]} 49. Ne3 {[%emt 0:00:00]} Qe2 {[%emt 0:00:00]} 50. f3 {[%emt 0:00:00]} Qd2 {[%emt 0:00:00]} 51. Kh2 {[%emt 0:00:00]} Qf2 {[%emt 0:00:00]} 52. Kh3 {[%emt 0:00:00]} Bd3 {[%emt 0:00:00]} 53. Ng4 {[%emt 0:00:00]} Qg1 {[%emt 0:00:00]} 54. Qe3 {[%emt 0:00:00]} Qh1+ {[%emt 0:00:00]} 55. Nh2 {[%emt 0:00:00]} Qd1 {[%emt 0:00:00]} 56. g4 {[%emt 0:00:13]} Kg8 {[%emt 0:00:00]} 57. Kg3 {[%emt 0:00:14]} Bc4 {[%emt 0:00:00]} 58. Kf4 {[%emt 0:01:50]} Qc2 {[%emt 0:00:00]} 59. Kg3 {[%emt 0:00:12]} Qd1 {[%emt 0:00:00]} 60. Kf2 {[%emt 0:02:18]} Qh1 {[%emt 0:00:00]} 61. Kg3 {[%emt 0:00:18]} Qd1 {[%emt 0:00:00]} 62. Kg2 {[%emt 0:01:52]} Qc2+ {[%emt 0:00:00]} 63. Kg3 {[%emt 0:00:23]} Qd1 {[%emt 0:00:00]} 1/2-1/2

[Event "ISR-chT 2019"]
[Site "Israel"]
[Date "2019.03.08"]
[Round "9.6"]
[White "Lurie, Michael"]
[Black "Gershkowich, David"]
[Result "1-0"]
[ECO "A10"]
[WhiteElo "2336"]
[BlackElo "2201"]
[Annotator "NA RC"]
[PlyCount "65"]
[EventDate "2019.01.04"]
[EventType "team-tourn"]
[EventCountry "ISR"]
[SourceTitle "playchess.com"]
[Source "ChessBase"]
[SourceQuality "1"]
[TimeControl "40/5400+30:1800+30"]

1. Nf3 {[%emt 0:00:00]} e6 {[%emt 0:05:54]} 2. b3 {[%emt 0:00:16]} f5 {[%emt 0:00:34]} 3. Bb2 {[%emt 0:00:58]} Nf6 {[%emt 0:00:09]} 4. c4 {[%emt 0:00:46]} Be7 {[%emt 0:00:28]} 5. d3 {[%emt 0:00:34]} O-O {[%emt 0:01:03]} 6. Nbd2 {[%emt 0:01:19]} d6 {[%emt 0:04:38]} 7. g3 {[%emt 0:03:14]} c6 {[%emt 0:04:52]} 8. Bg2 {[%emt 0:01:49]} e5 {[%emt 0:04:33]} 9. Qc2 {[%emt 0:13:32]} a5 {[%emt 0:02:13]} 10. c5 {[%emt 0:00:35]} e4 {[%emt 0:10:48]} 11. cxd6 {[%emt 0:03:52]} Bxd6 {[%emt 0:01:43]} 12. dxe4 {[%emt 0:00:35]} Nxe4 {[%emt 0:01:05]} 13. Nxe4 {[%emt 0:07:25]} fxe4 {[%emt 0:00:12]} 14. Qxe4 {[%emt 0:00:09]} Bb4+ {[%emt 0:02:07]} 15. Kf1 {[%emt 0:00:06]} Bf5 {[%emt 0:02:46]} 16. Qc4+ {[%emt 0:07:53]} Kh8 {[%emt 0:00:10]} 17. a3 {[%emt 0:01:39]} Bd6 {[%emt 0:02:00]} 18. h4 {[%emt 0:15:03]} Qe7 {[%emt 0:01:55]} 19. h5 {[%emt 0:00:05]} b5 {[%emt 0:06:37]} 20. Qh4 {[%emt 0:00:28]} h6 {[%emt 0:03:09]} 21. Qxe7 {[%emt 0:01:20]} Bxe7 {[%emt 0:00:02]} 22. Nh4 {[%emt 0:00:33]} Bh7 {[%emt 0:02:14]} 23. Rd1 {[%emt 0:06:58]} Bc5 {[%emt 0:04:42]} 24. f4 {[%emt 0:03:28]} Ra7 {[%emt 0:05:20]} 25. Ng6+ {[%emt 0:02:22]} Bxg6 {[%emt 0:00:02]} 26. hxg6 {[%emt 0:00:12]} Kg8 {[%emt 0:00:25]} 27. Rh5 {[%emt 0:04:59]} Bb6 {[%emt 0:03:34]} 28. Re5 {[%emt 0:00:27]} Bd8 {[%emt 0:07:47]} 29. Re6 {[%emt 0:01:35]} c5 {[%emt 0:04:50]} 30. Be5 {[%emt 0:02:40]} Be7 {[%emt 0:05:17]} 31. Bd5 {[%emt 0:03:43]} Kh8 {[%emt 0:00:06]} 32. Kg2 {[%emt 0:00:08]} Rd8 {[%emt 0:03:16]} 33. e4 {[%emt 0:01:16]} 1-0

[Event "ISR-chT 2019"]
[Site "Israel"]
[Date "2019.03.08"]
[Round "9.8"]
[White "Flom, Gabriel"]
[Black "Parkhov, Yair"]
[Result "1-0"]
[ECO "D46"]
[WhiteElo "2460"]
[BlackElo "2348"]
[Annotator "RC"]
[PlyCount "95"]
[EventDate "2019.01.04"]
[EventType "team-tourn"]
[EventCountry "ISR"]
[SourceTitle "playchess.com"]
[Source "ChessBase"]
[SourceQuality "1"]
[TimeControl "40/5400+30:1800+30"]

1. d4 {[%emt 0:16:48]} d5 {[%emt 0:00:00]} 2. c4 {[%emt 0:00:03]} c6 {[%emt 0:00:00]} 3. Nc3 {[%emt 0:00:03]} Nf6 {[%emt 0:00:00]} 4. Nf3 {[%emt 0:00:47]} e6 {[%emt 0:00:00]} 5. e3 {[%emt 0:01:07]} Nbd7 {[%emt 0:00:00]} 6. Qc2 {[%emt 0:00:03]} Bd6 {[%emt 0:00:04]} 7. Bd3 dxc4 {[%emt 0:00:06]} 8. Bxc4 {[%emt 0:00:09]} b5 {[%emt 0:00:07]} 9. Be2 {[%emt 1:15:30]} O-O {[%emt 0:00:41]} 10. O-O {[%emt 0:00:00]} a6 {[%emt 0:00:33]} 11. e4 {[%emt 0:01:00]} e5 12. Bg5 {[%emt 0:00:00]} Qc7 {[%emt 0:34:52]} 13. dxe5 {[%emt 0:00:00]} Nxe5 {[%emt 0:00:32]} 14. Bxf6 {[%emt 0:00:00]} Nxf3+ {[%emt 0:00:10]} 15. Bxf3 {[%emt 0:00:00]} gxf6 {[%emt 0:00:09]} 16. g3 {[%emt 0:00:00]} Be6 {[%emt 0:04:08]} 17. Nd1 {[%emt 0:00:00]} Rad8 {[%emt 0:04:07]} 18. Ne3 {[%emt 0:00:00]} Rfe8 {[%emt 0:23:23]} 19. Bg4 {[%emt 0:00:00]} Bf8 {[%emt 0:00:16]} 20. Bf5 {[%emt 0:00:00]} Rd4 {[%emt 0:02:27]} 21. Rad1 {[%emt 0:00:00]} Rxd1 {[%emt 0:04:56]} 22. Rxd1 {[%emt 0:00:00]} c5 {[%emt 0:05:41]} 23. Qe2 {[%emt 0:00:00]} Qe7 {[%emt 0:02:58]} 24. Qg4+ {[%emt 0:00:00]} Bg7 {[%emt 0:01:38]} 25. Qh5 {[%emt 0:00:00]} h6 {[%emt 0:03:34]} 26. Nd5 {[%emt 0:00:00]} Bxd5 {[%emt 0:00:28]} 27. Rxd5 {[%emt 0:00:00]} c4 {[%emt 0:11:06]} 28. Rd7 {[%emt 0:00:00]} Qf8 {[%emt 0:00:04]} 29. Ra7 {[%emt 0:00:00]} Ra8 {[%emt 0:00:59]} 30. Rc7 {[%emt 0:00:00]} Rd8 {[%emt 0:00:26]} 31. h4 {[%emt 0:00:00]} a5 {[%emt 0:00:15]} 32. Rc5 {[%emt 0:00:00]} Rb8 {[%emt 0:00:47]} 33. Bd7 {[%emt 0:00:00]} Qe7 {[%emt 0:00:52]} 34. Bxb5 {[%emt 0:00:00]} c3 {[%emt 0:00:07]} 35. bxc3 {[%emt 0:00:00]} Qxe4 {[%emt 0:00:13]} 36. Qd5 {[%emt 0:00:00]} Qe1+ {[%emt 0:01:38]} 37. Kg2 {[%emt 0:00:00]} Qe7 {[%emt 0:00:05]} 38. Bc4 {[%emt 0:00:00]} Rd8 {[%emt 0:00:54]} 39. Qf5 {[%emt 0:00:00]} a4 {[%emt 0:00:22]} 40. Bd5 {[%emt 0:00:00]} Kf8 {[%emt 0:00:46]} 41. Bf3 {[%emt 0:13:57]} Qe6 {[%emt 0:04:56]} 42. Qc2 {[%emt 0:00:00]} a3 {[%emt 0:07:49]} 43. c4 {[%emt 0:00:00]} Qe7 {[%emt 0:14:02]} 44. Rb5 {[%emt 0:00:00]} f5 {[%emt 0:01:58]} 45. Rxf5 {[%emt 0:00:00]} Bd4 {[%emt 0:01:07]} 46. Bd5 {[%emt 0:00:00]} f6 {[%emt 0:00:05]} 47. Rf4 {[%emt 0:00:00]} Be5 {[%emt 0:00:06]} 48. Rg4 {[%emt 0:00:00]} 1-0

[Event "ISR-chT 2019"]
[Site "Israel"]
[Date "2019.03.08"]
[Round "9.9"]
[White "Galburd, Yan"]
[Black "Deutsch, Eyal"]
[Result "1-0"]
[ECO "A45"]
[WhiteElo "2408"]
[BlackElo "2345"]
[Annotator "NA RC"]
[PlyCount "85"]
[EventDate "2019.01.04"]
[EventType "team-tourn"]
[EventCountry "ISR"]
[SourceTitle "playchess.com"]
[Source "ChessBase"]
[SourceQuality "1"]
[TimeControl "40/5400+30:1800+30"]

1. d4 {[%emt 0:00:12]} Nf6 {[%emt 0:00:00]} 2. Bf4 {[%emt 0:00:04]} c5 {[%emt 0:00:00]} 3. e3 {[%emt 0:00:18]} Qb6 {[%emt 0:00:00]} 4. Nf3 {[%emt 0:00:10]} d6 {[%emt 0:00:00]} 5. Nc3 {[%emt 0:12:56]} Bg4 {[%emt 0:01:38]} 6. Bb5+ {[%emt 0:05:58]} Nbd7 {[%emt 0:04:25]} 7. O-O {[%emt 0:03:05]} a6 {[%emt 0:03:06]} 8. Be2 {[%emt 0:01:10]} e6 {[%emt 0:00:59]} 9. h3 {[%emt 0:04:39]} Bh5 {[%emt 0:01:13]} 10. b3 {[%emt 0:14:21]} Qa5 {[%emt 0:03:53]} 11. Nb1 {[%emt 0:05:00]} Nd5 {[%emt 0:01:22]} 12. Bh2 {[%emt 0:06:11]} Nc3 {[%emt 0:00:50]} 13. Nxc3 {[%emt 0:03:16]} Qxc3 {[%emt 0:00:10]} 14. dxc5 {[%emt 0:02:55]} Qxc5 {[%emt 0:02:07]} 15. c4 {[%emt 0:02:24]} Be7 {[%emt 0:00:54]} 16. Qd2 {[%emt 0:03:11]} Nf6 {[%emt 0:00:39]} 17. Rfd1 {[%emt 0:01:08]} Rd8 {[%emt 0:00:47]} 18. Rac1 {[%emt 0:03:49]} O-O {[%emt 0:00:26]} 19. Nd4 {[%emt 0:02:07]} Bg6 {[%emt 0:01:43]} 20. b4 {[%emt 0:03:16]} Qb6 {[%emt 0:02:27]} 21. f3 {[%emt 0:04:36]} Nd7 {[%emt 0:03:07]} 22. Kh1 {[%emt 0:01:41]} Ne5 {[%emt 0:09:27]} 23. a4 {[%emt 0:02:35]} Nc6 {[%emt 0:03:10]} 24. a5 {[%emt 0:00:11]} Qa7 {[%emt 0:00:18]} 25. Bg1 {[%emt 0:07:01]} Nxd4 {[%emt 0:00:56]} 26. exd4 {[%emt 0:00:20]} d5 {[%emt 0:01:39]} 27. c5 {[%emt 0:00:19]} Rc8 {[%emt 0:01:08]} 28. Bh2 {[%emt 0:01:40]} Bd8 {[%emt 0:00:12]} 29. Bd6 {[%emt 0:03:09]} Re8 {[%emt 0:00:10]} 30. b5 {[%emt 0:00:32]} Qa8 {[%emt 0:04:45]} 31. b6 {[%emt 0:01:53]} Be7 {[%emt 0:03:42]} 32. Bg3 {[%emt 0:02:07]} f6 {[%emt 0:01:16]} 33. Qe3 {[%emt 0:00:41]} Bf8 {[%emt 0:01:08]} 34. Rc3 {[%emt 0:00:23]} Bf7 {[%emt 0:05:09]} 35. Rdc1 {[%emt 0:01:36]} g6 {[%emt 0:05:25]} 36. Bd1 {[%emt 0:00:52]} e5 {[%emt 0:00:10]} 37. Ba4 {[%emt 0:00:44]} Re7 {[%emt 0:00:28]} 38. dxe5 {[%emt 0:00:54]} Qb8 {[%emt 0:02:27]} 39. c6 {[%emt 0:01:31]} bxc6 {[%emt 0:00:28]} 40. f4 {[%emt 0:00:30]} Bh6 {[%emt 0:05:00]} 41. Rxc6 {[%emt 0:05:05]} Rxc6 {[%emt 0:01:10]} 42. Bxc6 {[%emt 0:00:02]} fxe5 {[%emt 0:00:15]} 43. Qc5 {[%emt 0:04:45]} 1-0

[Event "ISR-chT 2019"]
[Site "Israel"]
[Date "2019.03.08"]
[Round "9.18"]
[White "Gorshtein, Ido"]
[Black "Huzman, Alexander"]
[Result "1/2-1/2"]
[ECO "B23"]
[WhiteElo "2380"]
[BlackElo "2579"]
[Annotator "ChessBase"]
[PlyCount "90"]
[EventDate "2019.01.04"]
[EventType "team-tourn"]
[EventCountry "ISR"]
[SourceTitle "playchess.com"]
[Source "ChessBase"]
[SourceQuality "1"]
[TimeControl "40/5400+30:1800+30"]

1. e4 {[%emt 0:00:00]} c5 {[%emt 0:03:02]} 2. Ne2 {[%emt 0:00:00]} Nf6 {[%emt 0:02:29]} 3. Nbc3 {[%emt 0:00:00]} Nc6 {[%emt 0:00:13]} 4. g3 {[%emt 0:13:29]} d5 {[%emt 0:08:31]} 5. exd5 {[%emt 0:02:14]} Nd4 {[%emt 0:00:22]} 6. Bg2 {[%emt 0:00:13]} Bg4 {[%emt 0:00:04]} 7. h3 {[%emt 0:03:50]} Bf3 {[%emt 0:00:31]} 8. Bxf3 {[%emt 0:03:02]} Nxf3+ {[%emt 0:00:15]} 9. Kf1 {[%emt 0:00:01]} Nxd5 {[%emt 0:00:25]} 10. Nf4 {[%emt 0:01:16]} Nxf4 {[%emt 0:10:57]} 11. Qxf3 {[%emt 0:00:10]} Ne6 {[%emt 0:00:15]} 12. Qxb7 {[%emt 0:03:18]} Qc8 {[%emt 0:05:13]} 13. Qb5+ {[%emt 0:05:12]} Qd7 {[%emt 0:00:19]} 14. Qxd7+ {[%emt 0:00:02]} Kxd7 {[%emt 0:00:08]} 15. Nb5 {[%emt 0:05:39]} g6 {[%emt 0:08:22]} 16. d3 {[%emt 0:04:14]} Bg7 {[%emt 0:01:03]} 17. c3 {[%emt 0:00:56]} h5 {[%emt 0:05:59]} 18. h4 {[%emt 0:01:39]} Rab8 {[%emt 0:10:21]} 19. Na3 {[%emt 0:00:21]} Nc7 {[%emt 0:00:27]} 20. Ke2 {[%emt 0:09:05]} Nd5 {[%emt 0:02:10]} 21. Kd1 {[%emt 0:05:42]} Rhc8 {[%emt 0:03:44]} 22. Kc2 {[%emt 0:01:47]} Rc6 {[%emt 0:00:10]} 23. Bg5 {[%emt 0:05:40]} Re6 {[%emt 0:03:44]} 24. Rad1 {[%emt 0:06:01]} Ra6 {[%emt 0:14:35]} 25. Bd2 {[%emt 0:01:27]} Rbb6 {[%emt 0:00:24]} 26. Rhe1 {[%emt 0:01:40]} Rf6 {[%emt 0:03:55]} 27. f4 {[%emt 0:00:11]} Rfc6 {[%emt 0:01:36]} 28. Re2 {[%emt 0:02:49]} e6 {[%emt 0:00:24]} 29. Rc1 {[%emt 0:01:32]} Ne7 {[%emt 0:01:10]} 30. Be1 {[%emt 0:01:21]} Nf5 {[%emt 0:05:26]} 31. Rd1 {[%emt 0:03:52]} Ra5 {[%emt 0:04:08]} 32. Bf2 {[%emt 0:05:15]} Rca6 {[%emt 0:01:24]} 33. Ra1 {[%emt 0:04:58]} Rxa3 {[%emt 0:01:33]} 34. bxa3 {[%emt 0:00:09]} Rxa3 {[%emt 0:00:06]} 35. Be1 {[%emt 0:00:48]} c4 {[%emt 0:02:59]} 36. d4 {[%emt 0:02:21]} Ne7 {[%emt 0:00:29]} 37. Kb2 {[%emt 0:00:58]} Ra6 {[%emt 0:00:30]} 38. Kc1 {[%emt 0:02:42]} Nd5 {[%emt 0:00:38]} 39. Rb2 {[%emt 0:00:35]} Kc7 {[%emt 0:00:33]} 40. a4 {[%emt 0:01:49]} Rb6 {[%emt 0:00:44]} 41. a5 {[%emt 0:07:07]} Rxb2 {[%emt 0:03:51]} 42. Kxb2 {[%emt 0:01:32]} Kc6 {[%emt 0:00:45]} 43. Bd2 {[%emt 0:06:32]} a6 {[%emt 0:01:58]} 44. Kc2 {[%emt 0:00:16]} Bf8 {[%emt 0:06:52]} 45. Bc1 {[%emt 0:03:16]} Bd6 {[%emt 0:01:02]} 1/2-1/2

[Event "ISR-chT 2019"]
[Site "Israel"]
[Date "2019.03.08"]
[Round "9.19"]
[White "Dvoirys, Semen I."]
[Black "Baron, Tal"]
[Result "1/2-1/2"]
[ECO "C70"]
[WhiteElo "2519"]
[BlackElo "2517"]
[Annotator "RC"]
[PlyCount "80"]
[EventDate "2019.01.04"]
[EventType "team-tourn"]
[EventCountry "ISR"]
[SourceTitle "playchess.com"]
[Source "ChessBase"]
[SourceQuality "1"]
[TimeControl "40/5400+30:1800+30"]

1. e4 {[%emt 0:00:00]} e5 {[%emt 0:00:48]} 2. Nf3 {[%emt 0:00:00]} Nc6 {[%emt 0:00:02]} 3. Bb5 {[%emt 0:00:00]} g6 {[%emt 0:00:21]} 4. c3 {[%emt 0:00:15]} a6 {[%emt 0:00:08]} 5. Ba4 {[%emt 0:00:56]} Bg7 {[%emt 0:00:03]} 6. d4 {[%emt 0:00:13]} exd4 {[%emt 0:00:04]} 7. cxd4 {[%emt 0:00:11]} b5 {[%emt 0:00:12]} 8. Bc2 {[%emt 0:09:40]} d6 {[%emt 0:00:05]} 9. h3 {[%emt 0:01:03]} Nge7 {[%emt 0:00:04]} 10. Nc3 {[%emt 0:00:18]} O-O {[%emt 0:00:04]} 11. O-O {[%emt 0:00:15]} Bb7 {[%emt 0:00:56]} 12. a4 {[%emt 0:08:47]} Nb4 {[%emt 0:14:53]} 13. Bb1 {[%emt 0:00:48]} bxa4 {[%emt 0:00:59]} 14. Rxa4 {[%emt 0:00:16]} a5 {[%emt 0:01:12]} 15. Re1 {[%emt 0:11:59]} h6 {[%emt 0:12:11]} 16. Ra3 {[%emt 0:00:36]} f5 {[%emt 0:09:42]} 17. exf5 {[%emt 0:12:32]} Nxf5 {[%emt 0:02:38]} 18. Be4 {[%emt 0:09:39]} c6 {[%emt 0:08:26]} 19. Ne2 {[%emt 0:01:01]} Qf6 {[%emt 0:06:40]} 20. Nf4 {[%emt 0:03:14]} Rfe8 {[%emt 0:05:12]} 21. g4 {[%emt 0:11:03]} Nxd4 {[%emt 0:07:10]} 22. Nxd4 {[%emt 0:00:29]} Qxd4 {[%emt 0:00:09]} 23. Bxg6 {[%emt 0:00:07]} Qxd1 24. Rxd1 {[%emt 0:00:01]} Re7 {[%emt 0:09:03]} 25. Nh5 {[%emt 0:04:21]} Bh8 {[%emt 0:01:35]} 26. Bxh6 {[%emt 0:02:42]} Bxb2 {[%emt 0:02:16]} 27. Rb3 {[%emt 0:02:24]} Bh8 {[%emt 0:07:04]} 28. Rxd6 {[%emt 0:01:16]} Re1+ {[%emt 0:01:12]} 29. Kg2 {[%emt 0:00:03]} c5+ {[%emt 0:00:08]} 30. f3 {[%emt 0:00:06]} Re2+ {[%emt 0:06:05]} 31. Kf1 {[%emt 0:04:41]} Ba6 {[%emt 0:00:03]} 32. Rxa6 {[%emt 0:00:15]} Rxa6 {[%emt 0:00:45]} 33. Kxe2 {[%emt 0:00:28]} Rxg6 {[%emt 0:00:04]} 34. Bc1 {[%emt 0:00:18]} a4 {[%emt 0:02:03]} 35. Re3 {[%emt 0:01:20]} Ra6 {[%emt 0:00:28]} 36. f4 {[%emt 0:01:56]} Bd4 {[%emt 0:00:48]} 37. Ra3 {[%emt 0:10:46]} Nc2 {[%emt 0:00:01]} 38. Ra2 {[%emt 0:00:06]} Nb4 {[%emt 0:00:02]} 39. Ra3 {[%emt 0:00:12]} Nc2 {[%emt 0:01:23]} 40. Ra2 {[%emt 0:00:08]} Nb4 {[%emt 0:00:03]} 1/2-1/2